fUSD/lending_fUSD_20250310
["ID","MTS","AMOUNT","RATE_DAILY","PERIOD"]
[355806815,1741599038468,-79.08592563,9.9e-05,2]
[355806816,1741599038477,-150.0,9.903e-05,2]
[355806817,1741599038487,-150.0,9.903e-05,2]
[355806818,1741599038496,-150.0,9.903e-05,2]
[355806819,1741599038505,-150.0,9.904e-05,2]
[355806820,1741599038515,-150.0,9.918e-05,2]
[355806821,1741599038524,-150.0,9.918e-05,2]
[355806822,1741599038534,-150.0,9.919e-05,2]
[355806823,1741599038543,-150.0,9.922e-05,2]
[355806824,1741599038554,-150.0,9.926e-05,2]
[355806825,1741599038564,-150.0,9.927e-05,2]
[355806826,1741599038573,-150.0,9.927e-05,2]
[355806827,1741599038583,-150.0,9.932e-05,2]
[355806828,1741599038592,-150.0,9.933e-05,2]
[355806829,1741599038606,-150.0,9.935e-05,2]
[355806830,1741599038616,-150.0,9.938e-05,2]
[355806831,1741599038625,-150.0,9.94e-05,2]
[355806832,1741599038635,-150.0,9.94e-05,2]
[355806833,1741599038645,-150.0,9.942e-05,2]
[355806834,1741599038655,-150.0,9.943e-05,2]
[355806835,1741599038664,-150.0,9.946e-05,2]
[355806836,1741599038675,-150.0,9.947e-05,2]
[355806837,1741599038684,-150.0,9.947e-05,2]
[355806838,1741599038694,-150.0,9.953e-05,2]
[355806839,1741599038704,-150.0,9.964e-05,2]
[355806840,1741599038715,-150.0,9.967e-05,2]
[355806841,1741599038724,-150.0,9.978e-05,2]
[355806842,1741599038735,-150.0,9.98e-05,2]
[355806843,1741599038744,-150.0,9.98e-05,2]
[355806844,1741599038755,-150.0,9.981e-05,2]
[355806845,1741599038765,-150.0,9.987e-05,2]
[355806846,1741599038776,-150.0,9.988e-05,2]
[355806847,1741599038790,-23535.22064863,9.989e-05,2]
[355806848,1741599038807,-2780.53975679,9.989e-05,2]
[355806849,1741599038817,-961.65332038,9.989e-05,2]
[355806850,1741599038853,-150.0,9.983e-05,2]
[355806851,1741599038865,-10609.45344569,9.989e-05,2]
[355806852,1741599038875,-1584.45764822,9.989e-05,2]
[355806853,1741599038886,-10358.02775179,9.99e-05,2]
[355806854,1741599038898,-254.71710617,9.99e-05,2]
[355806855,1741599038918,-150.0,9.94e-05,2]
[355806856,1741599038928,-7157.56969774,9.99e-05,2]
[355806857,1741599038940,-424.7114682,9.99e-05,2]
[355806875,1741599039616,-150.0,9.758e-05,2]
[355806876,1741599039626,-150.0,9.759e-05,2]
[355806877,1741599039635,-150.0,9.83e-05,2]
[355806878,1741599039645,-150.0,9.867e-05,2]
[355806879,1741599039655,-150.0,9.983e-05,2]
[355806880,1741599039665,-16027.60000002,9.99e-05,2]
[355806881,1741599039677,-1120.6015269,9.99e-05,2]
[355806882,1741599039751,-82195.10345284,9.99e-05,2]
[355806883,1741599039798,-644.02548,9.99e-05,2]
[355806884,1741599039861,-1966.75235456,9.99e-05,2]
[355806885,1741599039976,-63969.05328295,9.99e-05,2]
[355806886,1741599039987,-150.0,9.99e-05,2]
[355806887,1741599039997,-150.0,9.991e-05,2]
[355806888,1741599040007,-150.0,9.991e-05,2]
[355806889,1741599040017,-150.0,9.993e-05,2]
[355806890,1741599040027,-6200.1211671,9.993e-05,2]
[355806891,1741599040036,-4696.2391638,9.993e-05,2]
[355806892,1741599040046,-3192.3571605,9.993e-05,2]
[355806893,1741599040056,-1688.4751572,9.993e-05,2]
[355806894,1741599040065,-150.0,9.993e-05,2]
[355806895,1741599040075,-150.0,9.993e-05,2]
[355806896,1741599040085,-150.0,9.994e-05,2]
[355806897,1741599040095,-150.0,9.995e-05,2]
[355806898,1741599040107,-150.0,9.995e-05,2]
[355806899,1741599040118,-21168.304179,9.998e-05,2]
[355806900,1741599040127,-150.0,9.998e-05,2]
[355806901,1741599040137,-1232.03026769,9.999e-05,3]
[355806902,1741599040147,-1232.03026769,9.999e-05,3]
[355806903,1741599040157,-1232.03026769,9.999e-05,3]
[355806905,1741599040167,-1000.0,9.999e-05,2]
[355806907,1741599040176,-1863.7,9.999e-05,2]
[355806909,1741599040186,-500.0,9.999e-05,2]
[355806911,1741599040195,-500.0,9.999e-05,2]
[355806913,1741599040204,-500.0,9.999e-05,2]
[355806916,1741599040215,-554.11601938,9.999e-05,2]
[355806919,1741599040224,-500.0,9.999e-05,2]
[355806921,1741599040234,-500.0,9.999e-05,2]
[355806924,1741599040244,-500.0,9.999e-05,2]
[355806927,1741599040254,-500.0,9.999e-05,2]
[355806929,1741599040264,-247.20578495,9.999e-05,2]
[355806936,1741599040437,-295.55115704,9.999e-05,2]
[355806937,1741599040448,-228.25392444,9.999e-05,2]
[355806938,1741599040458,-28507.05438676,0.0001,2]
[355806939,1741599040468,-82672.27446052,0.0001,2]
[355806940,1741599040481,-355305.28480073,0.0001,2]
[355806941,1741599040492,-109711.3456845,0.0001,2]
[355806942,1741599040505,-15314.91720458,0.0001,2]
[355806984,1741599043079,-720.54849,9e-05,2]
[355806985,1741599043089,-150.0,9.586e-05,2]
[355806986,1741599043102,-150.0,9.804e-05,2]
[355806988,1741599043111,-150.0,9.843e-05,2]
[355806989,1741599043121,-150.0,9.851e-05,2]
[355806990,1741599043130,-150.0,9.93e-05,2]
[355806992,1741599043139,-8629.65371968,0.0001,2]
[355806993,1741599043150,-8267605.18491099,0.0001,2]
[355806995,1741599043162,-1170303.02355053,0.0001,2]
[355806997,1741599043173,-3036.33824676,0.0001,2]
[355806999,1741599043202,-1598.30940112,0.0001,2]
[355807000,1741599043227,-5460.07311716,0.0001,2]
[355807001,1741599043238,-7093.46253267,0.0001,2]
[355807002,1741599043269,-4281.16716006,0.0001,2]
[355807016,1741599046033,-150.0,9.908e-05,2]
[355807017,1741599046042,-150.0,9.928e-05,2]
[355807018,1741599046053,-150.0,9.929e-05,2]
[355807019,1741599046063,-150.0,9.938e-05,2]
[355807021,1741599046072,-5667.47924223,0.0001,2]
[355807023,1741599046083,-790.90718226,0.0001,2]
[355807027,1741599046108,-841.95497365,0.0001,2]
[355807029,1741599046118,-769212.04250356,0.0001,2]
[355807031,1741599046130,-944.72075747,0.0001,2]
[355807034,1741599046155,-2713.35404988,0.0001,2]
[355807037,1741599046167,-40613.31226742,0.0001,2]
[355807039,1741599046178,-383.5086327,0.0001,2]
[355807043,1741599046198,-458.47014067,0.0001,2]
[355807046,1741599046209,-1023.05,0.0001,2]
[355807048,1741599046228,-65775.36637462,0.0001,2]
[355807049,1741599046412,-528.93075,0.0001,2]
[355807050,1741599046426,-626.8265502,0.0001,2]
[355807051,1741599046446,-4467.6589574,0.0001,2]
[355807052,1741599046458,-4263.20000002,0.0001,2]
[355807053,1741599046470,-2357.90801663,0.0001,2]
[355807054,1741599046481,-5205.57929644,0.0001,2]
[355807055,1741599046493,-6601.99531141,0.0001,2]
[355807056,1741599238778,526.0,0.00027723,120]
[355807057,1741599240895,1921.91220555,0.00027723,60]
[355807058,1741599241919,1000.0,0.00027723,30]
[355807059,1741599246759,1000.0,0.00027723,30]
[355807060,1741599265410,1000.0,0.00027723,60]
[355807061,1741599278279,1000.0,0.00027723,60]
[355807062,1741599291127,1000.0,0.00027723,60]
[355807063,1741599304239,1000.0,0.00027723,60]
[355807064,1741599316757,1000.0,0.00027723,60]
[355807065,1741599329577,1000.0,0.00027723,30]
[355807066,1741599342411,1000.0,0.00027723,30]
[355807067,1741599344340,1000.0,0.00027723,30]
[355807068,1741599345160,1000.0,0.00027723,30]
[355807069,1741599345749,1000.0,0.00027723,30]
[355807070,1741599347018,1000.0,0.00027723,30]
[355807071,1741599347780,851.65835945,0.00027723,30]
[355807072,1741599355248,1000.0,0.00027723,60]
[355807073,1741599368163,1000.0,0.00027723,60]
[355807074,1741599380917,1000.0,0.00027723,30]
[355807075,1741599393892,1000.0,0.00027723,30]
[355807076,1741599432964,2000.0,0.00027642,30]
[355807077,1741599444547,2000.0,0.00027642,30]
[355807079,1741599471247,2010.8,0.00027642,30]
[355807083,1741599762569,204.5,0.00027642,30]
[355807084,1741599817643,-901.9,8.219e-05,2]
[355807085,1741599817664,-176.33,8.852e-05,2]
[355807086,1741599817686,-150.01,8.863e-05,2]
[355807087,1741599817707,-194.13,8.866e-05,2]
[355807088,1741599817728,-1000.0,8.866e-05,2]
[355807089,1741599817749,-190.93,8.868e-05,2]
[355807090,1741599817770,-167.28,8.868e-05,2]
[355807091,1741599817790,-524.4,8.931e-05,2]
[355807093,1741599834630,-150.0,9.041e-05,2]
[355807094,1741599834667,-1849.24898258,9.126e-05,2]
[355807095,1741599834703,-9045.9592,9.486e-05,2]
[355807096,1741599834737,-150.0,9.562e-05,7]
[355807097,1741599834770,-571.0,9.586e-05,2]
[355807098,1741599834803,-928.81181742,9.586e-05,2]
[355807100,1741600045569,1000.0,0.00027642,30]
[355807101,1741600104705,1000.0,0.00027642,30]
[355807102,1741600111532,1000.0,0.00027642,30]
[355807103,1741600121288,1000.0,0.00027642,30]
[355807104,1741600131528,1000.0,0.00027642,30]
[355807105,1741600151498,1000.0,0.00027642,30]
[355807106,1741600159476,1000.0,0.00027642,30]
[355807107,1741600169043,1000.0,0.00027642,30]
[355807123,1741600231899,-430.37389866,8.872e-05,2]
[355807124,1741600232011,-468.72610134,8.872e-05,2]
[355807125,1741600232021,-1000.0,8.872e-05,2]
[355807126,1741600232032,-2281.5003078,8.879e-05,2]
[355807127,1741600232044,-21618.4996922,8.879e-05,2]
[355807128,1741600232054,-170.87,9.141e-05,2]
[355807129,1741600232063,-571.0,9.586e-05,2]
[355807130,1741600232074,-150.0,9.726e-05,2]
[355807131,1741600232084,-150.0,9.734e-05,2]
[355807132,1741600232094,-150.0,9.736e-05,2]
[355807133,1741600232103,-150.0,9.738e-05,2]
[355807134,1741600232113,-150.0,9.739e-05,2]
[355807135,1741600232123,-829.74,9.739e-05,2]
[355807136,1741600232134,-150.0,9.74e-05,2]
[355807137,1741600232147,-150.0,9.741e-05,2]
[355807138,1741600232160,-150.0,9.741e-05,2]
[355807139,1741600232170,-150.0,9.746e-05,2]
[355807140,1741600232179,-150.0,9.756e-05,2]
[355807141,1741600232189,-150.0,9.758e-05,2]
[355807142,1741600232200,-150.0,9.76e-05,2]
[355807143,1741600232210,-150.0,9.762e-05,2]
[355807144,1741600232220,-150.0,9.762e-05,2]
[355807145,1741600232231,-150.0,9.764e-05,2]
[355807146,1741600232242,-550.0,9.767e-05,2]
[355807147,1741600232252,-150.0,9.767e-05,2]
[355807148,1741600232263,-150.0,9.768e-05,2]
[355807149,1741600232272,-150.0,9.768e-05,2]
[355807150,1741600232282,-150.0,9.769e-05,2]
[355807151,1741600232292,-150.0,9.772e-05,2]
[355807152,1741600232301,-150.0,9.773e-05,2]
[355807153,1741600232316,-150.0,9.773e-05,2]
[355807154,1741600232326,-150.0,9.776e-05,2]
[355807155,1741600232336,-150.0,9.776e-05,2]
[355807156,1741600232345,-150.0,9.78e-05,2]
[355807157,1741600232355,-150.0,9.782e-05,2]
[355807158,1741600232365,-150.0,9.782e-05,2]
[355807159,1741600232375,-150.0,9.786e-05,2]
[355807160,1741600232385,-150.0,9.786e-05,2]
[355807161,1741600232397,-150.0,9.787e-05,2]
[355807162,1741600232407,-150.0,9.791e-05,2]
[355807164,1741600232417,-150.0,9.801e-05,2]
[355807166,1741600232426,-150.0,9.803e-05,2]
[355807168,1741600232437,-150.0,9.804e-05,2]
[355807170,1741600232447,-150.0,9.807e-05,2]
[355807172,1741600232457,-150.0,9.809e-05,2]
[355807174,1741600232467,-150.0,9.81e-05,2]
[355807176,1741600232478,-150.0,9.813e-05,2]
[355807179,1741600232488,-150.0,9.815e-05,2]
[355807180,1741600232497,-150.0,9.818e-05,2]
[355807183,1741600232507,-150.0,9.82e-05,2]
[355807185,1741600232517,-150.0,9.821e-05,2]
[355807187,1741600232526,-150.0,9.832e-05,2]
[355807189,1741600232536,-150.0,9.833e-05,2]
[355807191,1741600232547,-150.0,9.833e-05,2]
[355807193,1741600232556,-150.0,9.835e-05,2]
[355807195,1741600232566,-150.0,9.839e-05,2]
[355807197,1741600232576,-150.0,9.844e-05,2]
[355807199,1741600232585,-150.0,9.846e-05,2]
[355807201,1741600232595,-150.0,9.851e-05,2]
[355807203,1741600232605,-150.0,9.852e-05,2]
[355807205,1741600232614,-150.0,9.854e-05,2]
[355807207,1741600232623,-150.0,9.856e-05,2]
[355807209,1741600232633,-150.0,9.859e-05,2]
[355807211,1741600232644,-150.0,9.869e-05,2]
[355807213,1741600232653,-150.0,9.875e-05,2]
[355807215,1741600232663,-967.67494131,9.879e-05,2]
[355807217,1741600232673,-150.0,9.88e-05,2]
[355807219,1741600232683,-150.0,9.887e-05,2]
[355807221,1741600232693,-150.0,9.889e-05,2]
[355807223,1741600232703,-9696.4925,9.889e-05,2]
[355807225,1741600232713,-150.0,9.893e-05,2]
[355807227,1741600232722,-11595.0305,9.9e-05,2]
[355807229,1741600232732,-223.118,9.9e-05,2]
[355807231,1741600232741,-313.5887,9.9e-05,2]
[355807233,1741600232751,-897.1093,9.9e-05,2]
[355807235,1741600232760,-2048.8668,9.9e-05,2]
[355807237,1741600232770,-267.4755,9.9e-05,2]
[355807239,1741600232780,-337.7107,9.9e-05,2]
[355807241,1741600232791,-1768.2614,9.9e-05,2]
[355807243,1741600232801,-150.0,9.902e-05,2]
[355807245,1741600232812,-150.0,9.903e-05,2]
[355807247,1741600232821,-150.0,9.905e-05,2]
[355807249,1741600232832,-150.0,9.906e-05,2]
[355807251,1741600232842,-150.0,9.906e-05,2]
[355807253,1741600232852,-150.0,9.909e-05,2]
[355807256,1741600232863,-150.0,9.91e-05,2]
[355807258,1741600232873,-150.0,9.912e-05,2]
[355807260,1741600232883,-150.0,9.916e-05,2]
[355807261,1741600232892,-150.0,9.92e-05,2]
[355807264,1741600232904,-150.0,9.921e-05,2]
[355807266,1741600232914,-150.0,9.923e-05,2]
[355807268,1741600232924,-150.0,9.928e-05,2]
[355807270,1741600232935,-150.0,9.928e-05,2]
[355807272,1741600232945,-1542.395,9.93e-05,2]
[355807274,1741600232955,-150.0,9.931e-05,2]
[355807275,1741600232965,-150.0,9.936e-05,2]
[355807276,1741600232975,-150.0,9.936e-05,2]
[355807277,1741600232985,-150.0,9.936e-05,2]
[355807278,1741600232996,-150.0,9.936e-05,2]
[355807279,1741600233006,-150.0,9.937e-05,2]
[355807280,1741600233017,-150.0,9.939e-05,2]
[355807281,1741600233028,-150.0,9.939e-05,2]
[355807296,1741600233039,-150.0,9.94e-05,2]
[355807301,1741600233262,-150.0,9.941e-05,2]
[355807303,1741600233273,-150.0,9.945e-05,2]
[355807305,1741600233283,-150.0,9.946e-05,2]
[355807307,1741600233294,-150.0,9.954e-05,2]
[355807309,1741600233305,-150.0,9.959e-05,2]
[355807311,1741600233315,-150.0,9.961e-05,2]
[355807313,1741600233326,-150.0,9.965e-05,2]
[355807315,1741600233336,-150.0,9.969e-05,2]
[355807317,1741600233346,-150.0,9.969e-05,2]
[355807319,1741600233356,-150.0,9.97e-05,2]
[355807321,1741600233366,-150.0,9.976e-05,2]
[355807323,1741600233376,-150.0,9.978e-05,2]
[355807325,1741600233386,-150.0,9.979e-05,2]
[355807327,1741600233395,-1000.0,9.981e-05,2]
[355807329,1741600233406,-150.0,9.982e-05,2]
[355807331,1741600233416,-150.0,9.983e-05,2]
[355807333,1741600233426,-150.0,9.994e-05,2]
[355807335,1741600233436,-150.0,9.996e-05,2]
[355807337,1741600233445,-150.0,9.996e-05,2]
[355807339,1741600233455,-150.0,9.999e-05,2]
[355807341,1741600233465,-1786.05,9.999e-05,2]
[355807343,1741600233474,-500.0,9.999e-05,2]
[355807345,1741600233484,-575.42696294,9.999e-05,2]
[355807347,1741600233493,-60257.98494852,0.0001,2]
[355807350,1741600233512,-10223.50455645,0.0001,2]
[355807432,1741600237847,-1012.59427772,0.0001,2]
[355807439,1741600239863,-6727.14424683,0.0001,2]
[355807440,1741600239875,-478.66617121,0.0001,2]
[355807441,1741600239920,-1063.60632523,0.0001,2]
[355807442,1741600239932,-6331.81262024,0.0001,2]
[355807443,1741600239942,-923.12345281,0.0001,2]
[355807444,1741600239953,-817.58160012,0.0001,2]
[355807445,1741600239965,-2877.52454037,0.0001,2]
[355807446,1741600239976,-411.09474741,0.0001,2]
[355807447,1741600239988,-271.65308258,0.0001,2]
[355807448,1741600240019,-411.31082313,0.0001,2]
[355807449,1741600240179,-5801.01763483,0.0001,2]
[355807450,1741600240192,-259.29931354,0.0001,2]
[355807494,1741600243380,-184.188,9.586e-05,2]
[355807496,1741600243390,-729.252,0.0001,2]
[355807507,1741600243488,-1631122.3636407,0.0001,2]
[355807510,1741600243499,-913.71199534,0.0001,2]
[355807512,1741600243511,-6315.3,0.0001,2]
[355807515,1741600243536,-1099.45166358,0.0001,2]
[355807528,1741600245997,-10223.72036281,0.0001,2]
[355807529,1741600246035,-38999.99933634,0.0001,2]
[355807530,1741600246187,-495.71226737,0.0001,2]
[355807531,1741600246205,-8335.01915221,0.0001,2]
[355807532,1741600246216,-828.33,0.0001,2]
[355807533,1741600246229,-1299.2126069,0.0001,2]
[355807534,1741600246242,-564.88228283,0.0001,2]
[355807535,1741600246253,-58374.43075897,0.0001,2]
[355807536,1741600246265,-2324.29556668,0.0001,2]
[355807537,1741600246297,-1453.35008654,0.0001,2]
[355807538,1741600246309,-418.74528002,0.0001,2]
[355807539,1741600246321,-4794.10916932,0.0001,2]
[355807540,1741600246332,-407.82269628,0.0001,2]
[355807541,1741600246343,-429.36,0.0001,2]
[355807542,1741600246355,-640517.2439721,0.0001,2]
[355807544,1741600362060,150.0,0.00027642,30]
[355807547,1741600431393,-911.47,8.219e-05,2]
[355807558,1741601005953,966.88959693,0.00027625,120]
[355807559,1741601015646,567.9761766,0.00027625,120]
[355807565,1741601431972,-1000.0,8.851e-05,2]
[355807566,1741601431988,-550.0,9e-05,2]
[355807567,1741601432005,-182.0,9e-05,5]
[355807568,1741601432020,-300.0,9e-05,3]
[355807569,1741601432036,-300.0,9.002e-05,2]
[355807570,1741601432051,-21083.04069,9.003e-05,2]
[355807571,1741601432089,-1685.12419043,9.003e-05,2]
[355807572,1741601432107,-837.24311816,9.003e-05,2]
[355807573,1741601432149,-294.59200141,9.003e-05,2]
[355807574,1741601432170,-15.76799859,9.074e-05,2]
[355807575,1741601432189,-296.03200141,9.074e-05,2]
[355807576,1741601432205,-261.96657699,9.1e-05,3]
[355807577,1741601432452,-338.03342301,9.1e-05,3]
[355807578,1741601432461,-190.93,9.146e-05,2]
[355807579,1741601432470,-900.0,9.2e-05,3]
[355807580,1741601432479,-150.0,9.299e-05,2]
[355807581,1741601432488,-1200.0,9.3e-05,3]
[355807582,1741601432498,-6782.44,9.3e-05,2]
[355807583,1741601432508,-9999.99,9.3e-05,2]
[355807584,1741601432517,-1600.0,9.4e-05,3]
[355807585,1741601432527,-300.0,9.5e-05,3]
[355807586,1741601432536,-150.0,9.562e-05,7]
[355807587,1741601432548,-300.0,9.6e-05,3]
[355807588,1741601432557,-300.0,9.7e-05,3]
[355807589,1741601432567,-300.0,9.8e-05,3]
[355807590,1741601432576,-359.878,9.9e-05,2]
[355807591,1741601432585,-3892.7288,9.9e-05,2]
[355807592,1741601432596,-679.0,9.9e-05,3]
[355807593,1741601432606,-1000.0,9.9e-05,2]
[355807594,1741601432615,-550.0,9.9e-05,2]
[355807595,1741601432624,-150.0,9.9e-05,2]
[355807596,1741601432635,-420.0,9.902e-05,2]
[355807597,1741601432644,-1000.0,9.957e-05,2]
[355807599,1741601432653,-174.285,9.973e-05,2]
[355807601,1741601432663,-152.319934,9.973e-05,2]
[355807603,1741601432672,-155.31646833,9.973e-05,2]
[355807605,1741601432681,-502.98547349,9.973e-05,2]
[355807606,1741601432691,-500.80083932,9.973e-05,2]
[355807608,1741601432700,-160.32172585,9.973e-05,2]
[355807610,1741601432709,-1649.538,9.973e-05,2]
[355807612,1741601432718,-1711.63,9.999e-05,2]
[355807614,1741601432727,-404.17697157,9.999e-05,2]
[355807616,1741601432737,-7300.61468176,0.0001,2]
[355807618,1741601432746,-103741.76385364,0.0001,2]
[355807621,1741601432757,-547.20265525,0.0001,2]
[355807623,1741601432768,-366.48101014,0.0001,2]
[355807625,1741601432779,-420.7394915,0.0001,2]
[355807627,1741601432791,-449.32685517,0.0001,2]
[355807629,1741601432802,-299.99,0.0001,2]
[355807633,1741601432832,-437000.00147566,0.0001,2]
[355807636,1741601432847,-10677.54875767,0.0001,2]
[355807651,1741601437813,-281.67050018,0.0001,2]
[355807652,1741601437877,-11929.12256,0.0001,2]
[355807653,1741601437888,-6986.421322,0.0001,2]
[355807654,1741601437899,-12509.62511131,0.0001,2]
[355807661,1741601440122,-32544.52041238,0.0001,2]
[355807662,1741601440134,-41277.5,0.0001,2]
[355807663,1741601440390,-293.93629405,0.0001,2]
[355807664,1741601440401,-645.97106954,0.0001,2]
[355807665,1741601440431,-1198.367,0.0001,2]
[355807666,1741601440443,-315.36443668,0.0001,2]
[355807685,1741601443117,-3650.30734088,0.0001,2]
[355807686,1741601443127,-565.6926591,0.0001,2]
[355807687,1741601443138,-1598.89385898,0.0001,2]
[355807688,1741601443149,-777.52,0.0001,2]
[355807802,1741601445979,-65477.92619468,0.0001,2]
[355807803,1741601446021,-4314.23142136,0.0001,2]
[355807832,1741601462615,-299.68117616,8.219e-05,2]
[355807833,1741601524895,-150.0,8.3e-05,5]
[355807834,1741601888735,-566.20882384,8.219e-05,2]
[355807835,1741601888757,-150.0,9.041e-05,2]
[355807836,1741601888779,-550.0,9.041e-05,2]
[355807837,1741601888801,-500.0,9.562e-05,2]
[355807838,1741601888822,-300.0,9.585e-05,2]
[355807839,1741601888844,-150.0,9.585e-05,2]
[355807840,1741601888865,-151.0,9.586e-05,2]
[355807841,1741601888886,-571.0,9.586e-05,2]
[355807842,1741601888906,-1427.0,9.586e-05,2]
[355807843,1741601888927,-1269.0,9.586e-05,2]
[355807844,1741601888947,-541.0,9.586e-05,2]
[355807845,1741601888968,-907.0,9.586e-05,2]
[355807846,1741601888988,-4076.0,9.586e-05,2]
[355807847,1741601889012,-164.84,9.656e-05,2]
[355807848,1741601889032,-5738.9957,9.9e-05,2]
[355807851,1741602308883,2215.83498494,0.00027627,90]
[355807852,1741602311231,507.33387072,0.00027627,30]
[355807853,1741602312056,379.16887148,0.00027627,30]
[355807854,1741602312880,331.74746455,0.00027627,91]
[355807855,1741602314897,869.78521411,0.00027627,30]
[355807856,1741602316327,1000.0,0.00027627,30]
[355807857,1741602320351,243.49979818,0.00027627,120]
[355807858,1741602322192,1996.49551867,0.00027627,30]
[355807859,1741602322246,1118.58159428,0.00027627,120]
[355807860,1741602324171,733.97154525,0.00027627,30]
[355807861,1741602327365,422.2008287,0.00027627,30]
[355807862,1741602328651,1758.46706494,0.00027627,30]
[355807863,1741602337245,263.29351652,0.00027627,30]
[355807864,1741602350629,851.96371824,0.00027627,30]
[355807865,1741602358586,860.11232399,0.00027627,30]
[355807866,1741602361473,1156.53632255,0.00027627,90]
[355807868,1741602368057,926.46227238,0.00027627,30]
[355807869,1741602369774,197.69930006,0.00027627,60]
[355807870,1741602373305,642.34792162,0.00027627,120]
[355807871,1741602373401,207.3614806,0.00027627,30]
[355807872,1741602373460,198.90461023,0.00027627,30]
[355807873,1741602374686,957.11837542,0.00027627,30]
[355807874,1741602389655,349.82374224,0.00027627,30]
[355807875,1741602390870,180.47860876,0.00027627,60]
[355807879,1741602404487,205.28406658,0.00027627,30]
[355807880,1741602413153,188.92196939,0.00027627,120]
[355807881,1741602420404,160.59801859,0.00027627,120]
[355807882,1741602420804,160.70258483,0.00027627,120]
[355807883,1741602433368,159.10705049,0.00027627,120]
[355807884,1741602455768,524.14704971,0.00027627,120]
[355807885,1741602469368,514.07431303,0.00027627,120]
[355807886,1741602470374,502.54812335,0.00027627,120]
[355807887,1741602473674,1124.6776248,0.00027627,30]
[355807888,1741602474594,526.78145236,0.00027627,120]
[355807889,1741602483994,404.206494,0.00027627,120]
[355807890,1741602486148,208.89581149,0.00027627,120]
[355807891,1741602490618,212.29434312,0.00027627,120]
[355807892,1741602491146,880.38410504,0.00027627,30]
[355807894,1741602508538,344.10908834,0.00027627,120]
[355807895,1741602509275,993.56040921,0.00027627,120]
[355807896,1741602509515,601.78269218,0.00027627,120]
[355807897,1741602510817,1016.74330188,0.00027627,35]
[355807898,1741602511460,202.75835047,0.00027627,30]
[355807899,1741602515478,1731.03036064,0.00027627,30]
[355807900,1741602515546,2095.64738574,0.00027627,120]
[355807901,1741602515672,265.57360428,0.00027627,30]
[355807902,1741602515724,2678.02514658,0.00027627,30]
[355807903,1741602515820,473.70470389,0.00027627,45]
[355807904,1741602516106,2314.23188472,0.00027627,30]
[355807905,1741602516236,304.74279681,0.00027627,120]
[355807906,1741602516627,242.60907744,0.00027627,60]
[355807907,1741602516975,2036.11721276,0.00027627,120]
[355807908,1741602517310,2812.74683781,0.00027627,120]
[355807909,1741602517761,1456.54666941,0.00027627,30]
[355807910,1741602518216,1203.69533182,0.00027627,120]
[355807912,1741602519677,2185.76111436,0.00027627,30]
[355807913,1741602519931,461.69350114,0.00027627,120]
[355807916,1741602525892,425.15327469,0.00027627,30]
[355807917,1741602526017,162.03434525,0.00027627,120]
[355807923,1741602547414,-333.38,8.219e-05,2]
[355807937,1741602569598,-451.94405967,8.219e-05,2]
[355807948,1741602632542,-102.01594033,8.219e-05,2]
[355807949,1741602632552,-300.0,8.875e-05,2]
[355807950,1741602632562,-150.0,8.875e-05,2]
[355807951,1741602632572,-1000.0,8.876e-05,2]
[355807952,1741602632582,-21771.97013967,8.876e-05,2]
[355807956,1741602633600,-99708.58538778,8.876e-05,2]
[355807957,1741602633617,-6007.41,8.882e-05,2]
[355807958,1741602633633,-550.0,9e-05,2]
[355807959,1741602633650,-168.24,9.149e-05,2]
[355807960,1741602633668,-1823.087,9.586e-05,2]
[355807961,1741602633687,-150.0,9.586e-05,2]
[355807962,1741602633705,-641.0,9.586e-05,2]
[355807963,1741602633723,-1459.0,9.586e-05,2]
[355807964,1741602633739,-3931.0,9.586e-05,2]
[355807965,1741602633757,-150.0,9.586e-05,2]
[355807966,1741602633774,-7454.03,9.59e-05,2]
[355807967,1741602633791,-426.57,9.632e-05,2]